fUST/lending_fUST_20250715
["ID","MTS","AMOUNT","RATE_DAILY","PERIOD"]
[372272522,1752570652032,-460.0,0.0002,2]
[372272524,1752570652042,-289.79576107,0.0002,2]
[372272525,1752570652052,-179.99235221,0.0002,2]
[372272527,1752570652062,-898.31,0.0002,2]
[372272529,1752570652071,-460.0,0.0002,2]
[372272531,1752570652083,-460.0,0.0002,2]
[372272533,1752570652092,-891.43,0.0002,2]
[372272535,1752570652102,-460.0,0.0002,2]
[372272537,1752570652111,-460.0,0.0002,2]
[372272539,1752570652121,-460.0,0.0002,2]
[372272541,1752570652130,-460.0,0.0002,2]
[372272543,1752570652140,-460.0,0.0002,2]
[372272545,1752570652149,-460.0,0.0002,2]
[372272547,1752570652159,-460.0,0.0002,2]
[372272549,1752570652168,-460.0,0.0002,2]
[372272551,1752570652177,-470.67,0.0002,2]
[372272552,1752570652189,-471.48,0.0002,2]
[372272554,1752570652198,-460.0,0.0002,2]
[372272556,1752570652209,-460.0,0.0002,2]
[372272558,1752570652218,-460.0,0.0002,2]
[372272560,1752570652227,-460.0,0.0002,2]
[372272562,1752570652237,-460.0,0.0002,2]
[372272564,1752570652247,-460.0,0.0002,2]
[372272565,1752570652257,-460.0,0.0002,2]
[372272567,1752570652266,-460.0,0.0002,2]
[372272568,1752570652275,-460.0,0.0002,2]
[372272570,1752570652284,-460.0,0.0002,2]
[372272572,1752570652294,-460.0,0.0002,2]
[372272574,1752570652303,-460.0,0.0002,2]
[372272576,1752570652312,-460.0,0.0002,2]
[372272577,1752570652322,-460.0,0.0002,2]
[372272579,1752570652331,-460.0,0.0002,2]
[372272581,1752570652341,-1355.61,0.0002,2]
[372272583,1752570652350,-464.89168803,0.0002,2]
[372272585,1752570652359,-460.0,0.0002,2]
[372272587,1752570652368,-460.0,0.0002,2]
[372272588,1752570652378,-460.0,0.0002,2]
[372272590,1752570652388,-460.0,0.0002,2]
[372272592,1752570652397,-460.0,0.0002,2]
[372272594,1752570652407,-460.0,0.0002,2]
[372272596,1752570652416,-669.96,0.0002,2]
[372272598,1752570652425,-1420.46,0.0002,2]
[372272599,1752570652435,-460.0,0.0002,2]
[372272601,1752570652444,-460.0,0.0002,2]
[372272603,1752570652454,-460.0,0.0002,2]
[372272605,1752570652464,-460.0,0.0002,2]
[372272607,1752570652474,-460.0,0.0002,2]
[372272609,1752570652484,-460.0,0.0002,2]
[372272611,1752570652493,-460.0,0.0002,2]
[372272612,1752570652503,-460.0,0.0002,2]
[372272614,1752570652512,-460.0,0.0002,2]
[372272616,1752570652523,-730.02,0.0002,2]
[372272618,1752570652532,-460.0,0.0002,2]
[372272620,1752570652542,-2209.63,0.0002,2]
[372272621,1752570652555,-862.35,0.0002,2]
[372272623,1752570652576,-460.0,0.0002,2]
[372272625,1752570652586,-460.0,0.0002,2]
[372272627,1752570652595,-460.0,0.0002,2]
[372272629,1752570652604,-460.0,0.0002,2]
[372272631,1752570652614,-524.72,0.0002,2]
[372272633,1752570652623,-460.0,0.0002,2]
[372272635,1752570652632,-460.0,0.0002,2]
[372272636,1752570652641,-460.0,0.0002,2]
[372272638,1752570652650,-460.0,0.0002,2]
[372272640,1752570652660,-1374.95,0.0002,2]
[372272642,1752570652669,-1370.99,0.0002,2]
[372272644,1752570652679,-460.0,0.0002,2]
[372272645,1752570652689,-460.0,0.0002,2]
[372272658,1752570652698,-740.23,0.0002,2]
[372272660,1752570652833,-460.0,0.0002,2]
[372272662,1752570652843,-460.0,0.0002,2]
[372272664,1752570652856,-460.0,0.0002,2]
[372272666,1752570652874,-6066.63,0.0002,2]
[372272667,1752570652883,-2931.85265485,0.0002,2]
[372272682,1752570653044,-3056.23734515,0.0002,2]
[372272684,1752570653055,-460.0,0.0002,2]
[372272686,1752570653065,-460.0,0.0002,2]
[372272688,1752570653075,-460.0,0.0002,2]
[372272690,1752570653085,-5429.84,0.0002,2]
[372272692,1752570653095,-460.0,0.0002,2]
[372272694,1752570653104,-460.0,0.0002,2]
[372272696,1752570653113,-709.59,0.0002,2]
[372272697,1752570653122,-460.0,0.0002,2]
[372272699,1752570653131,-1557.24,0.0002,2]
[372272701,1752570653141,-736.32,0.0002,2]
[372272703,1752570653150,-1895.77,0.0002,2]
[372272705,1752570653160,-460.0,0.0002,2]
[372272707,1752570653169,-656.87,0.0002,2]
[372272709,1752570653178,-460.0,0.0002,2]
[372272711,1752570653189,-4034.47,0.0002,2]
[372272713,1752570653200,-494.98226552,0.0002,2]
[372272715,1752570653209,-460.0,0.0002,2]
[372272716,1752570653218,-469.56494247,0.0002,2]
[372272718,1752570653228,-460.0,0.0002,2]
[372272720,1752570653238,-460.0,0.0002,2]
[372272721,1752570653247,-460.0,0.0002,2]
[372272722,1752570653257,-460.0,0.0002,2]
[372272723,1752570653266,-813.36,0.0002,2]
[372272724,1752570653275,-460.0,0.0002,2]
[372272725,1752570653284,-460.0,0.0002,2]
[372272726,1752570653293,-460.0,0.0002,2]
[372272727,1752570653303,-684.57,0.0002,2]
[372272728,1752570653312,-460.0,0.0002,2]
[372272729,1752570653321,-460.0,0.0002,2]
[372272730,1752570653330,-460.0,0.0002,2]
[372272731,1752570653339,-460.0,0.0002,2]
[372272732,1752570653348,-412.51747007,0.0002,2]
[372272733,1752570653358,-483.94,0.0002,2]
[372272734,1752570653368,-460.0,0.0002,2]
[372272735,1752570653378,-6650.37,0.0002,2]
[372272736,1752570653387,-460.0,0.0002,2]
[372272737,1752570653395,-460.0,0.0002,2]
[372272738,1752570653405,-460.0,0.0002,2]
[372272739,1752570653413,-460.0,0.0002,2]
[372272740,1752570653422,-486.7,0.0002,2]
[372272741,1752570653432,-3397.01,0.0002,2]
[372272742,1752570653441,-914.28,0.0002,2]
[372272743,1752570653450,-464.64801131,0.0002,2]
[372272744,1752570653459,-460.0,0.0002,2]
[372272745,1752570653468,-460.0,0.0002,2]
[372272746,1752570653477,-541.55,0.0002,2]
[372272747,1752570653486,-593.68,0.0002,2]
[372272748,1752570653496,-701.5,0.0002,2]
[372272749,1752570653505,-460.0,0.0002,2]
[372272750,1752570653514,-489.87,0.0002,2]
[372272751,1752570653523,-460.0,0.0002,2]
[372272752,1752570653532,-1182.25,0.0002,2]
[372272753,1752570653541,-460.0,0.0002,2]
[372272754,1752570653550,-460.0,0.0002,2]
[372272755,1752570653558,-1976.96,0.0002,2]
[372272756,1752570653567,-460.0,0.0002,2]
[372272757,1752570653576,-2295.41,0.0002,2]
[372272758,1752570653585,-460.0,0.0002,2]
[372272759,1752570653595,-522.88,0.0002,2]
[372272760,1752570653604,-460.0,0.0002,2]
[372272761,1752570653613,-665.64,0.0002,2]
[372272762,1752570653622,-500.0,0.0002,2]
[372272763,1752570653631,-460.0,0.0002,2]
[372272764,1752570653640,-460.0,0.0002,2]
[372272765,1752570653650,-1499.53,0.0002,2]
[372272766,1752570653659,-460.0,0.0002,2]
[372272768,1752570653669,-460.0,0.0002,2]
[372272769,1752570653678,-460.0,0.0002,2]
[372272770,1752570653689,-460.0,0.0002,2]
[372272772,1752570653698,-460.0,0.0002,2]
[372272774,1752570653708,-819.29,0.0002,2]
[372272776,1752570653717,-460.0,0.0002,2]
[372272778,1752570653727,-460.0,0.0002,2]
[372272780,1752570653736,-460.0,0.0002,2]
[372272781,1752570653745,-460.0,0.0002,2]
[372272783,1752570653755,-1000.0,0.00020021,2]
[372272785,1752570653765,-1000.0,0.00020021,2]
[372272787,1752570653774,-209.02065604,0.00020021,2]
[372272789,1752570653784,-1000.0,0.00020021,2]
[372272791,1752570653794,-505.23073662,0.00020021,2]
[372272793,1752570653803,-418.0,0.00020027,2]
[372272795,1752570653813,-245.0,0.00020027,2]
[372272797,1752570653823,-236.98398654,0.00020027,2]
[372272799,1752570653832,-500.0,0.00020027,2]
[372272802,1752570653843,-500.0,0.00020038,2]
[372272803,1752570653853,-418.0,0.00020054,2]
[372272805,1752570653863,-629.62734468,0.00020054,2]
[372272807,1752570653872,-39887.82694021,0.0002007,2]
[372272809,1752570653882,-418.0,0.00020082,2]
[372272811,1752570653891,-10591.72515431,0.00020107,2]
[372272813,1752570653901,-418.0,0.00020109,2]
[372272815,1752570653911,-418.0,0.00020137,2]
[372272817,1752570653921,-418.0,0.00020164,2]
[372272819,1752570653930,-422.67044648,0.00020173,2]
[372272821,1752570653942,-157.665771,0.00020187,2]
[372272823,1752570653951,-418.0,0.00020191,2]
[372272825,1752570653960,-418.0,0.00020219,2]
[372272827,1752570653970,-418.0,0.00020246,2]
[372272829,1752570653984,-1500.0,0.00020268,2]
[372272831,1752570653994,-1500.0,0.00020268,2]
[372272833,1752570654003,-981.75419532,0.00020268,2]
[372272835,1752570654013,-1500.0,0.00020268,2]
[372272837,1752570654023,-460.0,0.00020273,2]
[372272839,1752570654033,-564.48562918,0.00020273,2]
[372272841,1752570654043,-460.0,0.00020273,2]
[372272843,1752570654053,-460.0,0.00020273,2]
[372272845,1752570654063,-157.13899942,0.00020273,2]
[372272847,1752570654073,-460.0,0.00020273,2]
[372272849,1752570654082,-518.56,0.00020273,2]
[372272851,1752570654091,-460.0,0.00020273,2]
[372272853,1752570654101,-150.00211973,0.00020273,2]
[372272855,1752570654110,-460.0,0.00020273,2]
[372272857,1752570654119,-929.48,0.00020273,2]
[372272859,1752570654128,-460.0,0.00020273,2]
[372272861,1752570654140,-460.0,0.00020273,2]
[372272863,1752570654149,-460.0,0.00020273,2]
[372272864,1752570654158,-460.0,0.00020273,2]
[372272866,1752570654167,-460.0,0.00020273,2]
[372272868,1752570654177,-463.68112012,0.00020273,2]
[372272870,1752570654187,-460.0,0.00020273,2]
[372272872,1752570654197,-460.0,0.00020273,2]
[372272874,1752570654206,-460.0,0.00020273,2]
[372272876,1752570654216,-329.04361555,0.00020273,2]
[372272878,1752570654225,-541.79,0.00020273,2]
[372272880,1752570654235,-460.0,0.00020273,2]
[372272882,1752570654245,-460.0,0.00020273,2]
[372272884,1752570654255,-460.0,0.00020273,2]
[372272886,1752570654265,-460.0,0.00020273,2]
[372272888,1752570654274,-460.0,0.00020273,2]
[372272890,1752570654286,-460.0,0.00020273,2]
[372272892,1752570654296,-460.0,0.00020273,2]
[372272894,1752570654316,-524.06,0.00020273,2]
[372272896,1752570654326,-460.0,0.00020273,2]
[372272898,1752570654335,-734.04,0.00020273,2]
[372272900,1752570654345,-460.0,0.00020273,2]
[372272902,1752570654355,-542.32,0.00020273,2]
[372272904,1752570654365,-460.0,0.00020273,2]
[372272906,1752570654374,-460.0,0.00020273,2]
[372272908,1752570654383,-898.07,0.00020273,2]
[372272910,1752570654392,-804.19,0.00020273,2]
[372272912,1752570654403,-460.0,0.00020273,2]
[372272914,1752570654414,-460.0,0.00020273,2]
[372272916,1752570654424,-460.0,0.00020273,2]
[372272918,1752570654436,-460.0,0.00020273,2]
[372272920,1752570654446,-460.0,0.00020273,2]
[372272922,1752570654456,-460.0,0.00020273,2]
[372272924,1752570654466,-460.0,0.00020273,2]
[372272926,1752570654476,-460.0,0.00020273,2]
[372272928,1752570654485,-898.31,0.00020273,2]
[372272930,1752570654495,-460.0,0.00020273,2]
[372272931,1752570654504,-460.0,0.00020273,2]
[372272933,1752570654513,-891.43,0.00020273,2]
[372272935,1752570654523,-460.0,0.00020273,2]
[372272937,1752570654532,-460.0,0.00020273,2]
[372272939,1752570654541,-460.0,0.00020273,2]
[372272941,1752570654550,-460.0,0.00020273,2]
[372272943,1752570654560,-460.0,0.00020273,2]
[372272945,1752570654569,-280.99292299,0.00020273,2]
[372272947,1752570654579,-460.0,0.00020273,2]
[372272949,1752570654588,-460.0,0.00020273,2]
[372272951,1752570654597,-470.67,0.00020273,2]
[372272953,1752570654607,-471.48,0.00020273,2]
[372272955,1752570654616,-460.0,0.00020273,2]
[372272957,1752570654626,-460.0,0.00020273,2]
[372272959,1752570654635,-460.0,0.00020273,2]
[372272961,1752570654645,-460.0,0.00020273,2]
[372272963,1752570654655,-460.0,0.00020273,2]
[372272965,1752570654664,-460.0,0.00020273,2]
[372272967,1752570654674,-460.0,0.00020273,2]
[372272969,1752570654684,-460.0,0.00020273,2]
[372272971,1752570654694,-460.0,0.00020273,2]
[372272973,1752570654703,-460.0,0.00020273,2]
[372272975,1752570654712,-465.477809,0.00020273,2]
[372272977,1752570654722,-1355.61,0.00020273,2]
[372272979,1752570654731,-460.0,0.00020273,2]
[372272981,1752570654741,-460.0,0.00020273,2]
[372272983,1752570654751,-460.0,0.00020273,2]
[372272985,1752570654760,-460.0,0.00020273,2]
[372272987,1752570654770,-669.96,0.00020273,2]
[372272989,1752570654779,-1420.46,0.00020273,2]
[372272991,1752570654790,-460.0,0.00020273,2]
[372272993,1752570654800,-460.0,0.00020273,2]
[372272995,1752570654810,-460.0,0.00020273,2]
[372272996,1752570654821,-460.0,0.00020273,2]
[372272999,1752570654831,-460.0,0.00020273,2]
[372273000,1752570654842,-460.0,0.00020273,2]
[372273002,1752570654851,-460.0,0.00020273,2]
[372273004,1752570654861,-460.0,0.00020273,2]
[372273006,1752570654871,-730.02,0.00020273,2]
[372273008,1752570654881,-460.0,0.00020273,2]
[372273010,1752570654891,-2209.63,0.00020273,2]
[372273012,1752570654901,-862.35,0.00020273,2]
[372273014,1752570654910,-460.0,0.00020273,2]
[372273016,1752570654920,-460.0,0.00020273,2]
[372273018,1752570654930,-460.0,0.00020273,2]
[372273020,1752570654940,-460.0,0.00020273,2]
[372273022,1752570654949,-524.72,0.00020273,2]
[372273024,1752570654959,-460.0,0.00020273,2]
[372273026,1752570654968,-460.0,0.00020273,2]
[372273028,1752570654980,-460.0,0.00020273,2]
[372273030,1752570654990,-460.0,0.00020273,2]
[372273032,1752570654999,-1374.95,0.00020273,2]
[372273034,1752570655009,-1370.99,0.00020273,2]
[372273036,1752570655019,-460.0,0.00020273,2]
[372273038,1752570655028,-460.0,0.00020273,2]
[372273040,1752570655037,-740.23,0.00020273,2]
[372273042,1752570655047,-460.0,0.00020273,2]
[372273044,1752570655057,-460.0,0.00020273,2]
[372273046,1752570655068,-6066.63,0.00020273,2]
[372273048,1752570655077,-5988.09,0.00020273,2]
[372273050,1752570655086,-460.0,0.00020273,2]
[372273052,1752570655096,-460.0,0.00020273,2]
[372273053,1752570655106,-460.0,0.00020273,2]
[372273055,1752570655115,-5429.84,0.00020273,2]
[372273057,1752570655125,-460.0,0.00020273,2]
[372273059,1752570655135,-460.0,0.00020273,2]
[372273061,1752570655144,-709.59,0.00020273,2]
[372273063,1752570655153,-460.0,0.00020273,2]
[372273065,1752570655163,-1557.24,0.00020273,2]
[372273067,1752570655172,-736.32,0.00020273,2]
[372273069,1752570655183,-1895.77,0.00020273,2]
[372273071,1752570655194,-460.0,0.00020273,2]
[372273073,1752570655203,-656.87,0.00020273,2]
[372273075,1752570655213,-460.0,0.00020273,2]
[372273077,1752570655223,-4034.47,0.00020273,2]
[372273079,1752570655232,-460.0,0.00020273,2]
[372273081,1752570655241,-460.0,0.00020273,2]
[372273083,1752570655251,-460.0,0.00020273,2]
[372273085,1752570655260,-460.0,0.00020273,2]
[372273087,1752570655269,-460.0,0.00020273,2]
[372273089,1752570655279,-813.36,0.00020273,2]
[372273091,1752570655288,-460.0,0.00020273,2]
[372273093,1752570655297,-465.09424804,0.00020273,2]
[372273095,1752570655306,-460.0,0.00020273,2]
[372273097,1752570655315,-684.57,0.00020273,2]
[372273099,1752570655325,-460.0,0.00020273,2]
[372273101,1752570655334,-460.0,0.00020273,2]
[372273102,1752570655343,-460.0,0.00020273,2]
[372273104,1752570655352,-594.7,0.00020273,2]
[372273107,1752570655362,-460.0,0.00020273,2]
[372273108,1752570655372,-6650.37,0.00020273,2]
[372273110,1752570655382,-460.0,0.00020273,2]
[372273112,1752570655391,-460.0,0.00020273,2]
[372273114,1752570655400,-460.0,0.00020273,2]
[372273116,1752570655410,-486.7,0.00020273,2]
[372273118,1752570655419,-3397.01,0.00020273,2]
[372273120,1752570655428,-914.28,0.00020273,2]
[372273122,1752570655438,-460.0,0.00020273,2]
[372273124,1752570655447,-460.0,0.00020273,2]
[372273126,1752570655456,-541.55,0.00020273,2]
[372273128,1752570655466,-593.68,0.00020273,2]
[372273130,1752570655475,-701.5,0.00020273,2]
[372273132,1752570655485,-460.0,0.00020273,2]
[372273147,1752570655618,-489.87,0.00020273,2]
[372273149,1752570655628,-460.0,0.00020273,2]
[372273151,1752570655638,-1182.25,0.00020273,2]
[372273153,1752570655647,-460.0,0.00020273,2]
[372273155,1752570655657,-460.0,0.00020273,2]
[372273157,1752570655666,-1976.96,0.00020273,2]
[372273159,1752570655675,-2295.41,0.00020273,2]
[372273161,1752570655686,-460.0,0.00020273,2]
[372273163,1752570655695,-522.88,0.00020273,2]
[372273165,1752570655705,-460.0,0.00020273,2]
[372273167,1752570655714,-665.64,0.00020273,2]
[372273169,1752570655724,-460.0,0.00020273,2]
[372273171,1752570655736,-460.0,0.00020273,2]
[372273173,1752570655745,-1499.53,0.00020273,2]
[372273175,1752570655755,-460.0,0.00020273,2]
[372273177,1752570655764,-460.0,0.00020273,2]
[372273179,1752570655774,-460.0,0.00020273,2]
[372273181,1752570655783,-460.0,0.00020273,2]
[372273183,1752570655793,-460.0,0.00020273,2]
[372273185,1752570655802,-819.29,0.00020273,2]
[372273187,1752570655812,-460.0,0.00020273,2]
[372273188,1752570655821,-460.0,0.00020273,2]
[372273190,1752570655830,-460.0,0.00020273,2]
[372273192,1752570655840,-460.0,0.00020273,2]
[372273194,1752570655849,-418.0,0.00020274,2]
[372273196,1752570655858,-500.0,0.00020274,2]
[372273198,1752570655868,-418.0,0.00020301,2]
[372273200,1752570655879,-10591.72515431,0.00020314,3]
[372273202,1752570655889,-1000.0,0.00020321,2]
[372273204,1752570655898,-505.39614656,0.00020321,2]
[372273206,1752570655908,-1000.0,0.00020321,2]
[372273208,1752570655917,-1005.63930367,0.00020321,2]
[372273210,1752570655927,-418.0,0.00020328,2]
[372273212,1752570655939,-418.0,0.00020356,2]
[372273214,1752570655948,-418.0,0.00020383,2]
[372273216,1752570655957,-4000.0,0.00020388,4]
[372273218,1752570655966,-151.0,0.000204,3]
[372273220,1752570655978,-418.0,0.00020411,2]
[372273222,1752570655988,-2000.0,0.00020416,2]
[372273224,1752570655997,-2000.0,0.00020416,2]
[372273225,1752570656006,-2000.0,0.00020416,2]
[372273227,1752570656015,-418.0,0.00020438,2]
[372273229,1752570656026,-260.0,0.00020456,2]
[372273231,1752570656035,-160.0,0.0002046,2]
[372273233,1752570656044,-160.0,0.0002046,2]
[372273235,1752570656055,-525.51022752,0.0002046,2]
[372273237,1752570656064,-468.75,0.0002046,2]
[372273238,1752570656074,-214.37129034,0.0002046,2]
[372273239,1752570656084,-160.0,0.0002046,2]
[372273240,1752570656093,-160.0,0.0002046,2]
[372273241,1752570656102,-215.50840239,0.0002046,2]
[372273242,1752570656111,-160.0,0.0002046,2]
[372273243,1752570656121,-838.84061749,0.0002046,2]
[372273244,1752570656130,-160.0,0.0002046,2]
[372273245,1752570656140,-160.0,0.0002046,2]
[372273246,1752570656150,-230.76969291,0.0002046,2]
[372273248,1752570656159,-160.0,0.0002046,2]
[372273249,1752570656168,-12603.13032295,0.0002046,2]
[372273252,1752570656178,-418.0,0.00020465,2]
[372273253,1752570656188,-420.0,0.00020472,2]
[372273255,1752570656197,-418.0,0.00020493,2]
[372273257,1752570656207,-425.0,0.0002052,2]
[372273259,1752570656216,-214.37129034,0.00020521,3]
[372273261,1752570656225,-12603.13032295,0.00020521,3]
[372273264,1752570656235,-160.0,0.00020521,3]
[372273266,1752570656244,-160.0,0.00020521,3]
[372273267,1752570656254,-10591.72515431,0.00020521,3]
[372273270,1752570656263,-500.0,0.00020536,2]
[372273272,1752570656273,-448.26567889,0.00020536,2]
[372273274,1752570656283,-151.0,0.00020537,2]
[372273276,1752570656293,-207.4,0.00020537,2]
[372273278,1752570656304,-500.0,0.00020537,2]
[372273279,1752570656314,-500.0,0.00020537,2]
[372273281,1752570656325,-500.0,0.00020537,2]
[372273284,1752570656335,-500.0,0.00020537,2]
[372273286,1752570656345,-500.0,0.00020537,2]
[372273288,1752570656354,-500.0,0.00020537,2]
[372273290,1752570656363,-500.0,0.00020537,2]
[372273292,1752570656372,-500.0,0.00020537,2]
[372273294,1752570656381,-500.0,0.00020537,2]
[372273296,1752570656390,-500.0,0.00020537,2]
[372273298,1752570656399,-500.0,0.00020537,2]
[372273299,1752570656409,-500.0,0.00020537,2]
[372273301,1752570656420,-500.0,0.00020537,2]
[372273304,1752570656430,-500.0,0.00020537,2]
[372273306,1752570656440,-500.0,0.00020537,2]
[372273308,1752570656450,-25000.0,0.00020537,2]
[372273309,1752570656461,-500.0,0.00020537,2]
[372273312,1752570656471,-500.0,0.00020537,2]
[372273314,1752570656483,-460.0,0.00020547,2]
[372273315,1752570656493,-460.0,0.00020547,2]
[372273317,1752570656502,-460.0,0.00020547,2]
[372273319,1752570656511,-460.0,0.00020547,2]
[372273321,1752570656521,-518.56,0.00020547,2]
[372273323,1752570656531,-460.0,0.00020547,2]
[372273325,1752570656540,-460.0,0.00020547,2]
[372273327,1752570656550,-929.48,0.00020547,2]
[372273329,1752570656559,-500.0,0.00020547,2]
[372273331,1752570656569,-429.07083965,0.00020547,2]
[372273334,1752570656578,-460.0,0.00020547,2]
[372273336,1752570656587,-460.0,0.00020547,2]
[372273338,1752570656596,-460.0,0.00020547,2]
[372273340,1752570656606,-192.40003544,0.00020547,2]
[372273342,1752570656615,-460.0,0.00020547,2]
[372273344,1752570656624,-460.0,0.00020547,2]
[372273346,1752570656633,-460.0,0.00020547,2]
[372273348,1752570656643,-465.48192467,0.00020547,2]
[372273350,1752570656652,-541.79,0.00020547,2]
[372273352,1752570656661,-460.0,0.00020547,2]
[372273354,1752570656671,-460.0,0.00020547,2]
[372273356,1752570656680,-460.0,0.00020547,2]
[372273358,1752570656690,-460.0,0.00020547,2]
[372273360,1752570656701,-460.0,0.00020547,2]
[372273362,1752570656710,-460.0,0.00020547,2]
[372273364,1752570656719,-524.06,0.00020547,2]
[372273366,1752570656729,-460.0,0.00020547,2]
[372273368,1752570656739,-734.04,0.00020547,2]
[372273370,1752570656748,-460.0,0.00020547,2]
[372273372,1752570656758,-542.32,0.00020547,2]
[372273374,1752570656767,-460.0,0.00020547,2]
[372273376,1752570656777,-460.0,0.00020547,2]
[372273378,1752570656786,-804.19,0.00020547,2]
[372273380,1752570656796,-898.07,0.00020547,2]
[372273382,1752570656805,-460.0,0.00020547,2]
[372273384,1752570656815,-460.0,0.00020547,2]
[372273386,1752570656825,-460.0,0.00020547,2]
[372273388,1752570656835,-425.48832527,0.00020547,2]
[372273390,1752570656844,-280.4211514,0.00020547,2]
[372273392,1752570656853,-488.01963404,0.00020547,2]
[372273394,1752570656863,-460.0,0.00020547,2]
[372273396,1752570656873,-537.00062229,0.00020547,2]
[372273398,1752570656882,-898.31,0.00020547,2]
[372273400,1752570656892,-600.55531265,0.00020547,2]
[372273402,1752570656901,-460.0,0.00020547,2]
[372273404,1752570656910,-891.43,0.00020547,2]
[372273406,1752570656919,-460.0,0.00020547,2]
[372273408,1752570656928,-460.0,0.00020547,2]
[372273410,1752570656939,-460.0,0.00020547,2]
[372273412,1752570656949,-460.0,0.00020547,2]
[372273414,1752570656959,-460.0,0.00020547,2]
[372273416,1752570656968,-460.0,0.00020547,2]
[372273418,1752570656979,-460.0,0.00020547,2]
[372273420,1752570656988,-470.67,0.00020547,2]
[372273422,1752570656998,-471.48,0.00020547,2]
[372273424,1752570657007,-468.16342656,0.00020547,2]
[372273426,1752570657016,-460.0,0.00020547,2]
[372273428,1752570657029,-460.0,0.00020547,2]
[372273430,1752570657039,-400.0,0.00020547,2]
[372273432,1752570657049,-460.0,0.00020547,2]
[372273434,1752570657059,-460.0,0.00020547,2]
[372273436,1752570657068,-460.0,0.00020547,2]
[372273438,1752570657078,-460.0,0.00020547,2]
[372273440,1752570657087,-460.0,0.00020547,2]
[372273442,1752570657096,-460.0,0.00020547,2]
[372273444,1752570657105,-1355.61,0.00020547,2]
[372273446,1752570657115,-460.0,0.00020547,2]
[372273448,1752570657125,-455.58154844,0.00020547,2]
[372273450,1752570657134,-460.0,0.00020547,2]
[372273452,1752570657144,-460.0,0.00020547,2]
[372273454,1752570657154,-669.96,0.00020547,2]
[372273456,1752570657163,-1420.46,0.00020547,2]
[372273458,1752570657172,-583.30112813,0.00020547,2]
[372273460,1752570657181,-460.0,0.00020547,2]
[372273462,1752570657192,-460.0,0.00020547,2]
[372273464,1752570657202,-460.0,0.00020547,2]
[372273466,1752570657212,-460.0,0.00020547,2]
[372273468,1752570657221,-460.0,0.00020547,2]
[372273470,1752570657230,-460.0,0.00020547,2]
[372273472,1752570657239,-730.02,0.00020547,2]
[372273473,1752570657249,-460.0,0.00020547,2]
[372273475,1752570657259,-2209.63,0.00020547,2]
[372273477,1752570657268,-862.35,0.00020547,2]